Cogmind - Beta 13 *** ADVENTURER MODE // 2024.04.03 @ 09:04:42 Player: Mazza Result: Destroyed by G-47 Trooper with Particle Gun Performance ------------- Evolutions (2) 1000 Regions Visited (3) 600 Robots Destroyed (45) 225 Value Destroyed (788) 788 Prototype IDs (0) 0 Alien Tech Used (0) 0 Bonus (0) 0 TOTAL SCORE: 2613 Bonus ------- None Cogmind --------- Core Integrity 0/550 Matter 125/300 Energy 100/100 System Corruption 0% Temperature Cool (9) Movement Core (350) Ox6 Location -8/Materials Parts ------- > --- POWER (3) -------- (None) > --- PROPULSION (3) --- (None) > --- UTILITY (2) ------ Large Storage Unit > --- WEAPON (3) ------- (None) > --- INVENTORY (15) --- Improved Heat Sink Large Storage Unit Large Storage Unit Large Storage Unit Large Storage Unit Large Storage Unit Seismic Detector Peak State ------------ > --- POWER ------------ Ion Engine Light Ion Engine Deuterium Engine > --- PROPULSION ------- Light Treads Aluminum Leg Aluminum Leg > --- UTILITY ---------- Heat Sink Large Storage Unit > --- WEAPON ----------- Mini Grenade Launcher Mining Laser Mace > --- INVENTORY -------- Light Ion Engine Light Ion Engine Large Storage Unit Large Storage Unit Large Storage Unit Large Storage Unit Large Storage Unit Improved Terrain Scanner Seismic Detector Small Laser [Rating: 16] Favorites ----------- Power Improved Ion Engine Engine Improved Ion Engine Propulsion Aluminum Leg Treads Light Treads Leg Aluminum Leg Wheel Compact Wheel Utility Large Storage Unit Device Heat Sink Storage Large Storage Unit Processor Terrain Scan Processor Weapon Small Laser Energy Gun Small Laser Energy Cannon Particle Cannon Ballistic Gun Assault Rifle Launcher Mini Grenade Launcher Special Weapon Mining Laser Impact Weapon Mace Build | -11 -10 -9 -8 ------- Run | Yrd Mat Mat Mat Slots Evolved 4 | . . 2 2 Power 2 | . . 1 1 Propulsion 1 | . . 1 . Utility . | . . . . Weapon 1 | . . . 1 Parts Attached 35 | 1 3 20 11 Power 13 | . 1 6 6 Engine 13 | . 1 6 6 Core . | . . . . Reactor . | . . . . Propulsion 4 | . . 4 . Treads 1 | . . 1 . Leg 2 | . . 2 . Wheel 1 | . . 1 . Hover . | . . . . Flight . | . . . . Utility 10 | . 2 6 2 Device 3 | . . 2 1 Storage 6 | . 1 4 1 Processor 1 | . 1 . . Hackware . | . . . . Protection . | . . . . Artifact . | . . . . Weapon 8 | 1 . 4 3 Energy Gun 3 | . . 2 1 Energy Cannon 1 | . . 1 . Ballistic Gun 1 | 1 . . . Ballistic Cannon . | . . . . Launcher 1 | . . 1 . Special Weapon 1 | . . . 1 Impact Weapon 1 | . . . 1 Slashing Weapon . | . . . . Piercing Weapon . | . . . . Special Melee Weapon . | . . . . Unidentified Prototypes . | . . . . Parts Lost 14 | . . 3 11 Power 4 | . . 1 3 Propulsion 2 | . . . 2 Utility 3 | . . 1 2 Weapon 5 | . . 1 4 Highest Loss Streak 5 | . . 3 5 To Critical Strikes . | . . . . Average Slot Usage (%) 77 | . 40 84 62 Engine 17 | . 11 18 17 Treads 5 | . . 6 2 Leg 14 | . . 18 3 Device 7 | . . 7 7 Storage 11 | . 4 12 9 Processor 1 | . 10 1 . Energy Gun 8 | . . 9 6 Ballistic Gun 1 | . 14 1 . Launcher 5 | . . 5 6 Impact Weapon 1 | . . . 8 Naked Turns . | . . . . Heaviest Build 42 | 2 7 35 42 Greatest Support 20 | 3 3 20 20 Greatest Overweight (x) 13 | . 2 3 13 Average Overweight (x) 1 | . . 1 7 Largest Inventory Capacity 15 | 5 5 15 15 Average Capacity 11 | 5 5 10 15 Most Carried 15 | 1 1 15 15 Average Carried 8 | . . 8 7 Final Capacity 15 | 5 5 15 15 Final Carried 14 | . . 14 7 Class Distribution -------------------- 77% | Scavenger-Mutant 22% | Mutant Dominant Class ---------------- Mutant | -10/Materials Scavenger-Mutant | -9/Materials Scavenger-Mutant | -8/Materials Resources | -11 -10 -9 -8 ----------- Run | Yrd Mat Mat Mat Matter Collected 726 | 100 42 434 150 Remotely . | . . . . Salvage Created 947 | . 33 574 340 Parts 89 | . 7 49 33 Haulers Intercepted 1 | . . 1 . Recyclers Shooed . | . . . . Parts Field Recycled . | . . . . Retrieved Matter . | . . . . Parts Self-Destructed . | . . . . Prevented . | . . . . Kills | -11 -10 -9 -8 ------- Run | Yrd Mat Mat Mat Combat Hostiles Destroyed 19 | . . 10 9 Guns 6 | . . 5 1 Cannons 5 | . . 5 . AOE 8 | . . . 8 Classes Destroyed 11 | . 2 6 3 Worker 8 | . 1 6 1 Builder 8 | . 1 1 6 Tunneler 1 | . . 1 . Hauler 1 | . . 1 . Recycler 3 | . . . 3 Mechanic 1 | . . . 1 Watcher 4 | . . 2 2 Swarmer 6 | . . 3 3 Grunt 9 | . . 5 4 Sentry 3 | . . 2 1 Hunter 1 | . . . 1 Best Kill Streak 17 | . 2 5 17 Combat Bots Only 4 | . . 3 4 Max Kills in Single Turn 3 | . 1 1 3 Gunslinging . | . . . . Exploded 3 | . . . 3 Melee . | . . . . Uniques/NPCs Destroyed . | . . . . Combat | -11 -10 -9 -8 -------- Run | Yrd Mat Mat Mat Hostile Shots Fired 273 | . . 150 123 Missed 80 | . . 50 30 Damage Taken 2127 | . . 800 1327 Core 856 | . . 300 556 Absorbed by Shields . | . . . . Ignored by Resistances 622 | . . 250 372 Regen/Repaired (Parts) 80 | . . . 80 Core Remaining (%) 75 | 100 100 25 . Volleys Fired 120 | . 9 75 36 Largest 2 | . 1 2 2 Hottest 108 | . 20 108 70 Shots Fired 134 | . 9 84 41 Gun 94 | . 9 71 14 Cannon 13 | . . 13 . Launcher 27 | . . . 27 Special . | . . . . Kinetic 17 | . 9 8 . Thermal 90 | . . 76 14 Explosive 27 | . . . 27 Electromagnetic . | . . . . Robot Hit Streak 17 | . 3 17 12 Robot Miss Streak 2 | . 1 2 2 Penetration Max . | . . . . Secondary Targets . | . . . . Shots Hit Robots 82 | . 4 51 27 Core Hits 68 | . 2 27 39 Critical Kills . | . . . . Critical Parts Destroyed . | . . . . Critical Strikes . | . . . . Melee Attacks . | . . . . Impact . | . . . . Slashing . | . . . . Piercing . | . . . . Sneak Attacks . | . . . . Combat Hostiles . | . . . . Follow-up Attacks . | . . . . Damage Inflicted 2754 | . 48 691 2015 Guns 696 | . 48 526 122 Cannons 165 | . . 165 . Explosions 1893 | . . . 1893 Melee . | . . . . Ramming . | . . . . Kinetic 119 | . 48 71 . Thermal 742 | . . 620 122 Explosive 1893 | . . . 1893 Electromagnetic . | . . . . Impact . | . . . . Slashing . | . . . . Piercing . | . . . . Highest Corruption . | . . . . Average Corruption . | . . . . Corruption Purged . | . . . . Corruption Blocked . | . . . . Overload Shots . | . . . . Overflow Damage 58 | . . . 58 Projectiles . | . . . . Explosions 58 | . . . 58 Melee . | . . . . Knockbacks . | . . . . Impact . | . . . . Kinetic . | . . . . Secondary . | . . . . Self-Inflicted Damage 254 | . . . 254 Shots 10 | . . . 10 Rammed . | . . . . Targets Rammed . | . . . . Kicked . | . . . . Crushed . | . . . . Highest Temperature 48 | . . 48 35 Average Temperature 14 | . . 21 7 Received Heat Transfer 969 | . . 447 522 Siege Activations . | . . . . Robots Corrupted . | . . . . Combat Hostiles . | . . . . Parts Fried . | . . . . Impact Corruptions . | . . . . Robots Melted . | . . . . Combat Hostiles . | . . . . Parts Melted 1 | . . 1 . Heat Transferred 1596 | . . 1321 275 Parts Sabotaged . | . . . . Parts Stolen . | . . . . Parts Stripped . | . . . . Power Chain Reactions . | . . . . Alert | -11 -10 -9 -8 ------- Run | Yrd Mat Mat Mat Peak Influence 283 | . 11 151 283 Initial 3 | . . 3 . Average 46 | . 9 23 147 Maximum Alert Level 1 | . . . 1 Low Security (%) 93 | 100 100 100 66 Level 1 6 | . . . 33 Level 2 . | . . . . Level 3 . | . . . . Level 4 . | . . . . Level 5 . | . . . . High Security . | . . . . Max Security . | . . . . Squads Dispatched 2 | . . 1 1 Investigation 1 | . . 1 . Extermination . | . . . . Reinforcement 1 | . . . 1 Assault . | . . . . Garrison . | . . . . Intercept . | . . . . Searches Triggered . | . . . . Construction Impeded 1 | . . . 1 Haulers Reinforced . | . . . . Active Scanning Responses . | . . . . Cargo Convoy Interrupts . | . . . . Stealth | -11 -10 -9 -8 --------- Run | Yrd Mat Mat Mat Distress Signals 5 | . . 1 4 Communications Jammed . | . . . . Distress Signals . | . . . . Times Spotted 30 | . . 13 17 Peak Tracking Total 6 | . . 4 6 Tactical Retreats . | . . . . Traps | -11 -10 -9 -8 ------- Run | Yrd Mat Mat Mat Traps Triggered 2 | . . 2 . Indirectly . | . . . . Trap Hack Attempts . | . . . . Triggered . | . . . . Disarmed . | . . . . Reprogrammed . | . . . . Reused . | . . . . Traps Extracted . | . . . . Installed . | . . . . Triggered . | . . . . Machines | -11 -10 -9 -8 ---------- Run | Yrd Mat Mat Mat Machines Disabled 1 | . . . 1 Max in Single Turn 1 | . . . 1 Machines Repaired . | . . . . Machines Dismantled . | . . . . Machines Sabotaged . | . . . . Overloaded Fab Kills . | . . . . Hacking | -11 -10 -9 -8 --------- Run | Yrd Mat Mat Mat Machines Accessed 4 | . . 3 1 Terminals 2 | . . 2 . Fabricators . | . . . . Repair Stations 2 | . . 1 1 Recycling Units . | . . . . Scanalyzers . | . . . . Garrison Access . | . . . . Total Hacks 15 | . . 12 3 Successful 11 | . . 8 3 Failed 4 | . . 4 . Catastrophic . | . . . . Database Lockouts . | . . . . Manual . | . . . . Terminals 9 | . . 9 . Fabricators . | . . . . Repair Stations 6 | . . 3 3 Recycling Units . | . . . . Scanalyzers . | . . . . Garrison Access . | . . . . Terminal Hacks 7 | . . 7 . Record 1 | . . 1 . Alert Level 5 | . . 5 . Reinforcement Status 1 | . . 1 . Fabricator Hacks . | . . . . Repair Station Hacks 4 | . . 1 3 Scan Component 2 | . . . 2 Repair 1 | . . . 1 Refit 1 | . . 1 . Recycling Unit Hacks . | . . . . Scanalyzer . | . . . . Garrison Access Hacks . | . . . . Unauthorized Hacks . | . . . . Terminals . | . . . . Fabricators . | . . . . Repair Stations . | . . . . Recycling Units . | . . . . Scanalyzers . | . . . . Garrison Access . | . . . . Data Cores Recovered . | . . . . Used . | . . . . Hacking Detections 4 | . . 3 1 Full Trace Events 4 | . . 3 1 Feedback Events . | . . . . Feedback Blocked . | . . . . Robot Schematics Acquired . | . . . . Robots Built . | . . . . Authchips . | . . . . Time . | . . . . Total Robot Build Rating . | . . . . Part Schematics Acquired . | . . . . Parts Built . | . . . . Authchips . | . . . . Time . | . . . . Total Part Build Rating . | . . . . Parts Repaired 1 | . . . 1 Time 26 | . . . 26 Parts Recycled . | . . . . Recycled Matter . | . . . . Retrieved Matter . | . . . . Retrieved Components . | . . . . Parts Scanalyzed . | . . . . Part Schematics Acquired . | . . . . Parts Damaged . | . . . . Bothacking | -11 -10 -9 -8 ------------ Run | Yrd Mat Mat Mat Used RIF Installer . | . . . . Robots Hacked . | . . . . Non-combat . | . . . . Combat . | . . . . Robot Hacks Applied . | . . . . Relay Couplers Released . | . . . . Fabnet Peak Effective % . | . . . . Robots Rewired . | . . . . Allies Hacked . | . . . . Hacks Repelled . | . . . . Allies | -11 -10 -9 -8 -------- Run | Yrd Mat Mat Mat Total Allies . | . . . . Largest Group . | . . . . Highest-Rated Group . | . . . . Highest-Rated Ally . | . . . . Total Orders . | . . . . Ally Attacks . | . . . . Total Damage . | . . . . Kills . | . . . . Allies Corrupted . | . . . . Allies Melted . | . . . . Intel | -11 -10 -9 -8 ------- Run | Yrd Mat Mat Mat Robot Analysis Total . | . . . . Derelict Logs Recovered . | . . . . Drone Launches . | . . . . Drone Recoveries . | . . . . Exploration | -11 -10 -9 -8 ------------- Run | Yrd Mat Mat Mat Turns Passed 3379 | 23 157 2545 654 Spaces Moved 1426 | 33 136 1140 117 Core 647 | 33 136 385 93 Treads 591 | . . 580 11 Legs 69 | . . 56 13 Wheels 119 | . . 119 . Hover . | . . . . Flight . | . . . . Fastest Speed 50 | 50 50 50 240 Average Speed 210 | 50 98 200 477 Slowest Speed 700 | 50 150 240 700 Overloaded Moves . | . . . . Propulsion Burnouts . | . . . . Robots Hopped . | . . . . Cave-ins Triggered . | . . . . Exploration Rate (%) 19 | 4 15 44 13 Regions Visited 3 Branch Regions . Pre-discovered Areas . | . . . . Known Exits Taken . | . . . . Unknown Exits Taken 3 | 1 1 1 . Scrap Searched . | . . . . Spaces Dug . | . . . . Terrain Destroyed 151 | . . . 151 Melee . | . . . . Projectile . | . . . . AOE 151 | . . . 151 Terrain Rammed . | . . . . Walls Destroyed . | . . . . Machines Disabled . | . . . . Actions | -11 -10 -9 -8 --------- Run | Yrd Mat Mat Mat Total 1681 | 39 151 1320 171 Wait 48 | 5 1 42 . Move 1423 | 32 135 1139 117 Hop . | . . . . Pick Up 39 | 1 3 33 2 Fast Attach 1 | . . 1 . Attach 24 | 1 3 15 5 Detach 1 | . . 1 . Swap 10 | . . 4 6 Drop 15 | . . 10 5 Fire 120 | . 9 75 36 Melee . | . . . . Ram . | . . . . Kick . | . . . . Crush . | . . . . Escape Stasis . | . . . . Rewire . | . . . . Trap . | . . . . Miscellaneous . | . . . . Route ------- -11/Scrapyard -10/Materials -9/Materials (discovered 2 exits: *Mat / [*Min]) -8/Materials History --------- Turn | Location | Event 11 | -11/Scrapyard | Discovered new exit (range 14) 24 | -11/Scrapyard | Entered Materials 172 | -10/Materials | Discovered new exit (range 5) 181 | -10/Materials | Entered another Materials area 181 | -9/Materials | Evolved 2 slots: Power x1, Propulsion x1 300 | -9/Materials | Build established: Mutant 508 | -9/Materials | Core integrity fell below 50% 524 | -9/Materials | Lost 3 parts (1p1u1w) 788 | -9/Materials | Discovered new exit (range 15) 832 | -9/Materials | Build established: Scavenger-Mutant 2698 | -9/Materials | Discovered new exit (range 12) 2726 | -9/Materials | Entered another Materials area 2726 | -8/Materials | Evolved 2 slots: Power x1, Weapon x1 2838 | -8/Materials | Repaired Aluminum Leg? 2945 | -8/Materials | Lost 5 parts (1p2n1u1w) 3185 | -8/Materials | Core integrity fell below 50% 3368 | -8/Materials | Core integrity fell below 20% 3380 | -8/Materials | Destroyed by G-47 Trooper with Particle Gun Last Messages --------------- 03245_ K-01 Serf collects debris. 03246_ U-05 Engineer builds a Wall. 03248_ K-01 Serf collects debris. 03251_ The unstable cave ceiling collapses. 03251_ Acquired 56 matter. 03252_ K-01 Serf collects debris. 03252_ U-05 Engineer builds a Wall. 03254_ The unstable cave ceiling collapses. 03255_ K-01 Serf collects debris. 03272_ U-05 Engineer builds a Wall. 03274_ R-06 Scavenger collects Lgt. Armor Plating. 03277_ U-05 Engineer builds a Wall. 03335_ W-25 Informer distress signal alerts nearby ally. 03346_ Lgt. Ion Engine destroyed. 03349_ Imp. Terrain Scanner destroyed. 03349_ Sml. Laser destroyed. 03367_ Critical hit (Burn: +37). 03376_ Mace destroyed. 03379_ Critical hit (Burn: +37). [Achievement: First Step to Greatness] Map ----- +----------------------------------------------------+ | ???????## # ##?????????????????????????????? | | ? ??#?#?# # ## ##########????????????????????? | | ?? ?#???# # #????????????????????? | | ?????#???### #????????????????????? | | ?#?#?# #?### #????????????????????? | | ?#?#??????## # ####### #????????????????????? | | ??????????# ## #?#????????????????????????????? | | ?????? ???## #####??????? ?#???????????????????? | | ???????????# #?????#?#?? ????????????#?????????? | | ?"????+??#?# #??##???????? ??? ????????????????? | | ?????????#?# ###??#?????????????????? ?????????? | | ? ??? ???## #??##?#?#?????????????? ??????????? | | ????#?? ???# #???#????#??#?????????????????????? | | ???????????# ##??????????##?????????#??????????? | | ?????????### ##?????????#??????????????????????? | | ??????????# ###############??????????????????? | | ???#????#?# #???? ?????????????? | | ??????? ??# #??? ? ??? ????????? | | ????? ????# #???????????#??????? | | ??? ??????# ##T#########+#####???????????????? | | ??????????##########?#### w #???????????????? | | ???????????#????????????# #???????????????? | | ????? ??? ??????????????# ! #???????????????? | | ????????? #?????????????# g #???????????????? | | ???????? ?#?????#??#????# + ????????? | | ??????????????????????#?#@ [=/ ! ######??????????? | | ???? ??? ?????#????????## ==/ #???#???????????? | | ???? ????????????#?#????#Y =/ #???????????????? | | ???????????????????????? #???????????????? | | ??????????? ???????#????##########???????????????? | | ?????????????????????????????????????????????????? | | ?????????????????????????????????????????????????? | | ?????????????????? ??"?????#?????????????????????? | | ?????????????????????"???????????????????????????? | | ?????????????????????????????????????????????????? | | ?????????????????????????????????????????????????? | | ?????????????????????????????????????????????????? | | ?????????????????????????????????????????????????? | | ?????????????????????????????????????????????????? | | ?????????????????????????????????????????????????? | | ?????????????????????????????????????????????????? | | ?????????????????????????????????????????????????? | | ?????????????????????????????????????????????????? | | ?????????????????????????????????????????????????? | | ?????????????????????????????????????????????????? | | ?????????????????????????????????????????????????? | | ?????????????????????????????????????????????????? | | ?????????????????????????????????????????????????? | | ?????????????????????????????????????????????????? | | ?????????????????????????????????????????????????? | +----------------------------------------------------+ Best States ------------- Heat Dissipation 41 Energy Generation 24 Energy Capacity 450 Matter Stores 400 Matter Capacity 500 Sight Range 16 Terrain Scan Range 16 Terrain Scan Density 85 Resistance: KI 20 Resistance: TH 20 Resistance: EX 20 Resistance: EM 20 Resistance: I 20 Resistance: S 20 Resistance: P 20 Evasion (%) 55 Recoil Reduction 1 Offensive Hacking 10 Item Schematics ----------------- None Robot Schematics ------------------ None Fabricated ------------ Nothing Alien Tech Used ----------------- None Achievements -------------- Crack Shot First Step to Greatness Loot Pinata One Hack Too Far Part-time Mechanic Challenges ------------ None Game ------ Seed LinkedWeightRail Manual? 0 Play Time 00:49:29 Cumulative 0.7 hours Start 2024.03.17 @ 07:58:20 End 2024.04.03 @ 09:04:42 Sessions 3 Manual Loads 0 Difficulty Adventurer Special Mode None Game No. 2 Rogue 0 Adventurer 2 Explorer 0 Win Type - Total 0 Types 0/0/0/0/0/0/0/0/0 Lore% 0 Gallery% 1 Achievement% 1 Wizard Run 0 Options --------- Layout 0 ASCII 0 Keyboard 0 Movement Mouse Keybinds 0 Fullscreen 1 Font 12/Smallcaps Map View 38x28 Zoom Use 86% Tactical HUD 1 Map Filters NONE Filters NONE Steam SD RUN: 3f0f88fa-9a07-4054-9f44-abd3e9ee5144